Cogmind - Beta 16 @@@ ROGUE MODE // 2026.02.05 @ 04:19:00 Player: Shay Result: Destroyed by Y-64 Sentinel with Wave Gun Performance ------------- Evolutions (3) 1500 Regions Visited (10) 2000 Robots Destroyed (145) 725 Value Destroyed (4751) 4751 Prototype IDs (14) 280 Alien Tech Used (0) 0 Bonus (596) 596 TOTAL SCORE: 9852 Bonus ------- High Alert Combat Kills 22 Follower Combat Kills 274 Met Data Miner 300 Cogmind --------- Core Integrity 0/700 Matter 231/300 Energy 135/150 System Corruption 13% Temperature Warning (381) Movement Rolling (155) Ox5 Location -6/Proximity Caves Parts ------- > --- POWER (1) -------- Micro Nuclear Core > --- PROPULSION (3) --- Wheel > --- UTILITY (5) ------ High-capacity Storage Unit Signal Interpreter > --- WEAPON (4) ------- Heavy EM Shotgun (fused) Gatling Laser Flak Gun > --- INVENTORY (20) --- Light Deuterium Engine Cryofiber Web Large Matter Pod (150) Improved Signal Interpreter Improved Terrain Scanner Improved Terrain Scan Processor Seismic Detector Actuator Array Improved Actuator Array Gatling Laser Flak Gun Missile Launcher Powered Hammer Peak State ------------ > --- POWER ------------ Micro Nuclear Core > --- PROPULSION ------- Medium Treads Armored Huge Wheel > --- UTILITY ---------- High-capacity Storage Unit Kinecellerator Improved Light Armor Plating Hacking Suite System Shield > --- WEAPON ----------- Minigun Flak Gun Flak Gun Powered Hammer > --- INVENTORY -------- Light Deuterium Engine Micro Nuclear Core Wheel Cryofiber Web Improved Cooling System Large Matter Pod Visual Processing Unit Signal Interpreter Improved Signal Interpreter Improved Terrain Scan Processor Armor Integrity Analyzer Actuator Array Insulated Plating System Restoration Module Improved Field Recycling Unit Gatling Laser Plasma Cannon Flak Gun Missile Launcher Missile Launcher [Rating: 51] Favorites ----------- Power Micro Nuclear Core Engine Ion Engine Power Core Micro Nuclear Core Propulsion Wheel Treads Medium Treads Wheel Wheel Utility Large Storage Unit Device Improved Heat Sink Storage Large Storage Unit Processor Advanced Targeting Computer Hackware System Shield Protection Medium Armor Plating Weapon Gatling Laser Energy Gun Gatling Laser Energy Cannon Improved EM Pulse Cannon Ballistic Gun Heavy Assault Rifle Ballistic Cannon Assault Cannon Launcher Grenade Launcher Special Weapon Enhanced Flamer Impact Weapon Great Maul Build | -11 -10 -10 -9 -9 -8 -7 -7 -7 -7 -6 ------- Run | Yrd Mat Min Mat Min Mat Fac Low Low Dat Pro Slots Evolved 6 | . . . 2 . 2 2 . . . . Power . | . . . . . . . . . . . Propulsion 1 | . . . . . . 1 . . . . Utility 3 | . . . 1 . 1 1 . . . . Weapon 2 | . . . 1 . 1 . . . . . Parts Attached 116 | 6 6 3 19 . 30 40 2 6 . 4 Power 8 | 1 . . 2 . 2 3 . . . . Engine 5 | 1 . . 2 . 2 . . . . . Core 3 | . . . . . . 3 . . . . Reactor . | . . . . . . . . . . . Propulsion 25 | 2 1 1 6 . 6 7 . . . 2 Treads 7 | . . 1 3 . . 2 . . . 1 Leg . | . . . . . . . . . . . Wheel 18 | 2 1 . 3 . 6 5 . . . 1 Hover . | . . . . . . . . . . . Flight . | . . . . . . . . . . . Utility 31 | 1 3 . 3 . 6 15 . 3 . . Device 8 | . . . . . 2 5 . 1 . . Storage 5 | 1 2 . . . 1 1 . . . . Processor 6 | . 1 . 1 . 1 3 . . . . Hackware 2 | . . . . . . 2 . . . . Protection 10 | . . . 2 . 2 4 . 2 . . Artifact . | . . . . . . . . . . . Weapon 52 | 2 2 2 8 . 16 15 2 3 . 2 Energy Gun 18 | 1 2 2 1 . 3 6 2 . . 1 Energy Cannon 5 | . . . . . 5 . . . . . Ballistic Gun 16 | 1 . . 5 . 3 6 . 1 . . Ballistic Cannon 3 | . . . . . 2 1 . . . . Launcher 5 | . . . 2 . 1 . . 1 . 1 Special Weapon 1 | . . . . . . . . 1 . . Impact Weapon 4 | . . . . . 2 2 . . . . Slashing Weapon . | . . . . . . . . . . . Piercing Weapon . | . . . . . . . . . . . Special Melee Weapon . | . . . . . . . . . . . Unidentified Prototypes 2 | . . . . . 1 1 . . . . Parts Lost 48 | . . 3 6 . 15 11 . 3 . 10 Power 2 | . . . 1 . . . . . . 1 Propulsion 11 | . . 1 2 . 2 3 . . . 3 Utility 12 | . . . 1 . 2 4 . 1 . 4 Weapon 23 | . . 2 2 . 11 4 . 2 . 2 Highest Loss Streak 10 | . . 3 3 . 6 2 . 2 . 10 To Critical Strikes 2 | . . . . . . . . . . 2 Average Backups 17 | 2 7 8 11 13 20 20 18 18 17 17 Power 1 | . 1 1 . . 1 1 2 2 2 1 Propulsion 1 | 1 1 1 1 3 2 . 1 1 2 1 Utility 10 | . 2 4 6 5 11 12 11 9 9 8 Weapon 3 | . 2 1 3 5 3 4 4 4 4 4 Tool/Special . | . . . . . . . . . . . Unused Backups 38 | . 5 . 6 . 6 10 . 2 . 9 Power 3 | . . . . . 1 1 . . . 1 Propulsion 3 | . 1 . 1 . 1 . . . . . Utility 24 | . 3 . 3 . 3 6 . 1 . 8 Weapon 8 | . 1 . 2 . 1 3 . 1 . . Tool/Special . | . . . . . . . . . . . Average Slot Usage (%) 92 | . 94 97 90 100 87 95 90 91 92 88 Engine 5 | . 14 14 9 11 9 1 . . . . Core 2 | . . . . . . 5 7 7 7 6 Treads 4 | . . 11 11 . . 6 . . . 1 Wheel 15 | . 28 14 10 22 17 12 15 15 15 13 Device 3 | . . . . . 1 7 7 7 7 6 Storage 12 | . 17 28 22 22 10 7 7 7 7 7 Processor 6 | . 4 . 5 11 9 6 7 7 7 7 Hackware 4 | . . . . . . 9 7 7 7 6 Protection 4 | . . . 4 . 6 3 7 6 7 5 Energy Gun 12 | . 27 27 11 9 3 10 21 28 23 22 Energy Cannon 2 | . . . . . 8 . . . . . Ballistic Gun 9 | . . . 15 22 9 10 . . 7 7 Ballistic Cannon 1 | . . . . . 3 2 . . . . Impact Weapon 4 | . . . . . 7 5 7 . . . Peak Build Rating 51 | 6 11 10 14 14 33 51 48 49 46 46 Average Rating 29 | 4 9 9 11 13 23 42 44 46 46 43 On Entrance 24 | . 6 10 10 14 14 33 45 48 46 46 Avg Prop Armor Cover (%) 9 | . . 11 9 . . 9 . . . . Naked Turns . | . . . . . . . . . . . Heaviest Build 179 | 14 51 51 54 54 179 167 74 75 67 67 Greatest Support 48 | 20 20 20 40 32 32 48 38 38 38 38 Greatest Overweight (x) 10 | . 2 5 5 1 10 6 1 1 1 6 Average Overweight (x) 2 | . . 4 2 1 5 2 1 1 1 1 Largest Inventory Capacity 30 | 8 15 15 15 15 30 30 20 20 20 20 Average Capacity 20 | 6 9 15 15 15 26 21 20 20 20 20 Most Carried 28 | 4 9 15 15 14 28 26 20 20 17 18 Average Carried 17 | 2 7 12 13 13 20 20 18 17 17 17 Final Capacity 30 | 8 15 15 15 15 30 20 20 20 20 20 Final Carried 26 | 4 9 15 13 14 26 18 20 17 17 13 Class Distribution -------------------- 20% | Hauler-Gunner 18% | Gunner 16% | Mutant 11% | Scavenger-Tank 9% | Hacker-Tank 6% | Hacker-Gunner 6% | Scavenger-Gunner 5% | Tank 5% | Hauler-Mutant Dominant Class ---------------- Mutant | -10/Materials Mutant | -10/Mines Mutant | -9/Materials Gunner | -9/Mines Hauler-Gunner | -8/Materials Hacker-Tank | -7/Factory Scavenger-Tank | -7/Lower Caves Tank | -7/Lower Caves Scavenger-Tank | -7/Data Miner Scavenger-Tank | -6/Proximity Caves Resources | -11 -10 -10 -9 -9 -8 -7 -7 -7 -7 -6 ----------- Run | Yrd Mat Min Mat Min Mat Fac Low Low Dat Pro Matter Collected 3249 | 205 303 35 366 112 775 1122 34 259 . 38 Remotely . | . . . . . . . . . . . Salvage Created 5243 | . 311 100 753 65 1759 1472 309 186 . 288 Parts 295 | . 28 6 53 8 100 75 4 15 . 6 Haulers Intercepted 1 | . . . . . 1 . . . . . Recyclers Shooed 6 | . . . 3 1 . 2 . . . . Parts Field Recycled . | . . . . . . . . . . . Retrieved Matter . | . . . . . . . . . . . Parts Self-Destructed 18 | . . . . . . . 4 10 . 4 Prevented 3 | . . . . . . . . 2 . 1 Parts Restored . | . . . . . . . . . . . Kills | -11 -10 -10 -9 -9 -8 -7 -7 -7 -7 -6 ------- Run | Yrd Mat Min Mat Min Mat Fac Low Low Dat Pro Combat Hostiles Destroyed 110 | . 8 2 16 7 32 26 4 9 . 6 Melee 5 | . . . . . 2 3 . . . . Guns 56 | . 7 2 7 2 7 20 4 4 . 3 Cannons 17 | . . . . . 14 3 . . . . AOE 28 | . 1 . 8 5 7 . . 5 . 2 Classes Destroyed 15 | . 4 . 5 1 4 1 . . . . Worker 7 | . . . 1 . 4 2 . . . . Builder 10 | . . . 1 . 6 3 . . . . Tunneler 1 | . 1 . . . . . . . . . Hauler 1 | . . . . . 1 . . . . . Recycler 7 | . . . 3 . 1 3 . . . . Operator 4 | . . . . . 3 1 . . . . Watcher 7 | . 2 . 1 . 3 1 . . . . Swarmer 23 | . 3 . 6 4 2 . . 7 . 1 Grunt 52 | . 5 2 6 1 19 13 2 1 . 3 Brawler 3 | . . . 1 . . . 1 . . 1 Duelist 2 | . . . . . 1 1 . . . . Sentry 17 | . . . 3 . 8 4 . 1 . 1 Specialist 2 | . . . . . 2 . . . . . Programmer 9 | . . . . . . 8 1 . . . Assembled 2 | . . . . 2 . . . . . . Best Kill Streak 14 | . 6 2 6 4 14 6 3 3 . 3 Combat Bots Only 7 | . 4 2 5 4 7 6 3 3 . 3 Max Kills in Single Turn 4 | . 2 1 2 4 4 2 1 2 . 1 Gunslinging . | . . . . . . . . . . . Exploded 4 | . 1 . 2 4 2 . . 2 . 1 Melee 1 | . . . . . 1 1 . . . . Uniques/NPCs Destroyed . | . . . . . . . . . . . Combat | -11 -10 -10 -9 -9 -8 -7 -7 -7 -7 -6 -------- Run | Yrd Mat Min Mat Min Mat Fac Low Low Dat Pro Hostile Shots Fired 777 | . 22 10 104 12 187 290 13 66 . 73 Missed 222 | . 4 1 38 4 56 82 4 16 . 17 Hits 555 | . 18 9 66 8 131 208 9 50 . 56 Melee 4 | . . . . 1 . . 2 . . 1 Projectile 551 | . 18 9 66 7 131 208 7 50 . 55 Critical Strikes 23 | . . . . . 10 7 1 1 . 4 Part Disruptions 2 | . . . . . . 2 . . . . Damage Taken 7791 | . 221 136 840 134 2088 2445 178 572 . 1177 Core 1237 | . 70 17 122 23 295 357 14 130 . 209 Absorbed by Shields . | . . . . . . . . . . . Ignored by Resistances 36 | . . . . . . 36 . . . . Core Remaining (%) 68 | 100 . 65 . 63 46 . . . . . Volleys Fired 234 | . 16 5 43 12 61 62 8 14 . 13 Largest 4 | . 2 2 3 3 4 4 3 4 . 4 Hottest 229 | . 90 90 91 91 198 229 229 227 . 227 Shots Fired 573 | . 32 8 88 23 151 175 20 35 . 41 Gun 446 | . 32 8 78 18 74 149 20 29 . 38 Cannon 89 | . . . . . 63 26 . . . . Launcher 38 | . . . 10 5 14 . . 6 . 3 Special . | . . . . . . . . . . . Kinetic 245 | . . . 38 14 71 108 . 5 . 9 Thermal 153 | . . . . . 29 67 20 18 . 19 Explosive 38 | . . . 10 5 14 . . 6 . 3 Electromagnetic 137 | . 32 8 40 4 37 . . 6 . 10 Robot Hit Streak 18 | . 11 5 18 17 18 15 10 8 . 8 Robot Miss Streak 8 | . 8 2 5 3 3 6 2 4 . 5 Penetration Max 1 | . . . . . . 1 . . . . Secondary Targets 8 | . 1 1 . . . 3 . . . 3 Max Gunslinging Chain 1 | . 1 1 . . . 1 . . . 1 Shots Hit Robots 448 | . 19 6 63 17 115 154 18 20 . 36 Core Hits 330 | . 19 6 36 20 86 102 12 18 . 31 Critical Kills 2 | . . . . . . 2 . . . . Critical Parts Destroyed 8 | . . . . . 4 4 . . . . Critical Strikes 16 | . . . . . 7 7 1 . . 1 Burn 4 | . . . . . 2 . 1 . . 1 Blast 2 | . . . . . 1 1 . . . . Smash 10 | . . . . . 4 6 . . . . Melee Attacks 174 | . . . . . 41 131 2 . . . Impact 174 | . . . . . 41 131 2 . . . Slashing . | . . . . . . . . . . . Piercing . | . . . . . . . . . . . Sneak Attacks 6 | . . . . . 4 2 . . . . Combat Hostiles . | . . . . . . . . . . . Follow-up Attacks . | . . . . . . . . . . . Damage Inflicted 12366 | . 395 91 1254 462 3945 3713 610 787 . 1109 Guns 5992 | . 300 71 682 246 696 2586 417 276 . 718 Cannons 1611 | . . . . . 1193 418 . . . . Explosions 2843 | . 95 . 566 216 1064 . . 511 . 391 Melee 1894 | . . . . . 992 709 193 . . . Ramming 26 | . . 20 6 . . . . . . . Kinetic 3058 | . . . 249 169 724 1727 . 49 . 140 Thermal 2991 | . 95 . 36 63 479 1277 417 184 . 440 Explosive 2440 | . . . 530 153 947 . . 476 . 334 Electromagnetic 1942 | . 300 71 433 77 788 . . 78 . 195 Impact 1909 | . . . . . 1007 709 193 . . . Slashing . | . . . . . . . . . . . Piercing . | . . . . . . . . . . . Highest Corruption 14 | . . . . . . 14 14 14 9 13 Average Corruption 9 | . . . . . . 9 14 10 9 9 Corruption Purged 5 | . . . . . . . . 5 . . Corruption Blocked . | . . . . . . . . . . . Effects 141 | . . . . . . 103 11 20 3 4 Message Errors 36 | . . . . . . 24 5 4 2 1 Matter Fused 34 | . . . . . . 30 . 3 1 . Heat Flow Errors 11 | . . . . . . 9 . 2 . . Energy Discharges 20 | . . . . . . 14 1 5 . . Parts Rejected 1 | . . . . . . . 1 . . . Parts Fused 6 | . . . . . . 4 1 1 . . Data Loss (minor) 16 | . . . . . . 11 3 1 . 1 Data Loss (major) 6 | . . . . . . 5 . . . 1 Misfires 6 | . . . . . . 4 . 2 . . Alerts 2 | . . . . . . 1 . 1 . . Weapon Failures 3 | . . . . . . 1 . 1 . 1 Overload Shots . | . . . . . . . . . . . Overflow Damage 879 | . . . 14 . 434 205 175 18 . 33 Projectiles . | . . . . . . . . . . . Explosions 110 | . . . 14 . 45 . . 18 . 33 Melee 769 | . . . . . 389 205 175 . . . Knockbacks 16 | . . . . . 8 8 . . . . Impact 12 | . . . . . 6 6 . . . . Kinetic 4 | . . . . . 2 2 . . . . Secondary . | . . . . . . . . . . . Self-Inflicted Damage 403 | . 35 10 129 29 80 . . 66 . 54 Shots 11 | . 1 . 4 1 2 . . 2 . 1 Rammed 2 | . . 1 1 . . . . . . . Targets Rammed 3 | . . 1 2 . . . . . . . Kicked . | . . . . . . . . . . . Crushed 1 | . . . 1 . . . . . . . Highest Temperature 433 | . 278 94 192 102 433 284 426 320 . 372 Average Temperature 102 | . 95 60 47 50 113 94 162 144 . 160 Received Heat Transfer 2526 | . 87 72 168 33 1053 570 18 93 . 432 Effects 4 | . . . . . 3 1 . . . . Energy Bleed 1 | . . . . . 1 . . . . . Interference 1 | . . . . . . 1 . . . . Matter Decay 1 | . . . . . 1 . . . . . Short Circuit 1 | . . . . . 1 . . . . . Siege Activations . | . . . . . . . . . . . Martial Activations . | . . . . . . . . . . . Shielding Activations . | . . . . . . . . . . . Robots Disrupted . | . . . . . . . . . . . Combat Hostiles . | . . . . . . . . . . . Robots Corrupted 6 | . . . 1 . 4 1 . . . . Combat Hostiles 3 | . . . 1 . 2 . . . . . Parts Fried 16 | . . . . . 10 6 . . . . Impact Corruptions 30 | . . . . . 15 10 5 . . . Robots Melted 1 | . . . . . . . . . . 1 Combat Hostiles 1 | . . . . . . . . . . 1 Parts Melted 10 | . . . . . 1 3 2 1 . 3 Heat Transferred 6416 | . 150 . 50 100 1223 2702 921 374 . 896 Parts Sabotaged . | . . . . . . . . . . . Parts Stolen . | . . . . . . . . . . . Parts Stripped . | . . . . . . . . . . . Power Chain Reactions 6 | . 2 . 1 . 1 . . 1 . 1 Alert | -11 -10 -10 -9 -9 -8 -7 -7 -7 -7 -6 ------- Run | Yrd Mat Min Mat Min Mat Fac Low Low Dat Pro Maximum Alert Level 2 | . . . 1 . 2 1 . . . . Low Security (%) 73 | 100 100 100 57 100 61 74 . . . . Level 1 24 | . . . 42 . 31 25 . . . . Level 2 2 | . . . . . 6 . . . . . Level 3 . | . . . . . . . . . . . Level 4 . | . . . . . . . . . . . Level 5 . | . . . . . . . . . . . High Security . | . . . . . . . . . . . Max Security . | . . . . . . . . . . . Peak Influence 428 | . 147 53 290 141 428 383 . . . . Initial 189 | . . 33 . 62 14 189 . . . . Average 126 | . 63 4 161 76 141 145 . . . . Influence Increases 3712 | . 247 50 563 199 1141 1082 105 200 . 125 Destroy 0b10 Robot/C 2340 | . 160 40 320 100 680 660 80 180 . 120 Destroy 0b10 Robot/NC 190 | . 15 . 30 . 90 50 5 . . . Destroy Leader 566 | . 44 10 62 20 198 192 20 20 . . Allied During Kill 45 | . . . . . 2 38 . . . 5 Successful Hack 73 | . 4 . 7 . 13 49 . . . . Disable Machine 30 | . . . 15 15 . . . . . . Destroy Structure 273 | . 9 . 54 34 113 63 . . . . Partial Spotted 15 | . . . . . 15 . . . . . Lose Combat Pursuer 180 | . 15 . 75 30 30 30 . . . . Influence Decreases 3712 | . 162 135 402 321 764 1120 271 309 103 125 Entered New Map 688 | . . 52 . 99 25 227 141 41 103 . Time Decay 2431 | . 162 53 342 222 556 663 130 238 . 65 Lost Part 420 | . . 30 60 . 150 110 . 30 . 40 Lost Ally 173 | . . . . . 33 120 . . . 20 Squads Dispatched 21 | . 2 . . . 7 11 . . . 1 Investigation 2 | . 1 . . . . 1 . . . . Extermination 9 | . . . . . . 9 . . . . Reinforcement 6 | . 1 . . . 4 1 . . . . Assault 1 | . . . . . . . . . . 1 Garrison 3 | . . . . . 3 . . . . . Intercept . | . . . . . . . . . . . Searches Triggered . | . . . . . . . . . . . Construction Impeded 1 | . . . . . 1 . . . . . Haulers Reinforced . | . . . . . . . . . . . Active Scanning Responses . | . . . . . . . . . . . Cargo Convoy Interrupts . | . . . . . . . . . . . Stealth | -11 -10 -10 -9 -9 -8 -7 -7 -7 -7 -6 --------- Run | Yrd Mat Min Mat Min Mat Fac Low Low Dat Pro Distress Signals 12 | . 1 . 3 . 6 2 . . . . Communications Jammed . | . . . . . . . . . . . Distress Signals . | . . . . . . . . . . . Times Spotted 159 | . 13 2 27 9 48 40 3 8 . 9 Peak Tracking Total 7 | . 5 2 7 5 7 6 2 3 . 7 Tactical Retreats 8 | . 1 . 3 1 2 1 . . . . Traps | -11 -10 -10 -9 -9 -8 -7 -7 -7 -7 -6 ------- Run | Yrd Mat Min Mat Min Mat Fac Low Low Dat Pro Traps Triggered 3 | . 1 . . . 1 1 . . . . Indirectly . | . . . . . . . . . . . Trap Hack Attempts . | . . . . . . . . . . . Triggered . | . . . . . . . . . . . Disarmed 5 | . . . . . . 5 . . . . Reprogrammed . | . . . . . . . . . . . Reused . | . . . . . . . . . . . Traps Extracted . | . . . . . . . . . . . Installed . | . . . . . . . . . . . Triggered . | . . . . . . . . . . . Most Traps Carried 5 | . . 5 5 . . . . . . . Machines | -11 -10 -10 -9 -9 -8 -7 -7 -7 -7 -6 ---------- Run | Yrd Mat Min Mat Min Mat Fac Low Low Dat Pro Machines Disabled 3 | . . . 1 1 . . . . . 1 Max in Single Turn 1 | . . . 1 1 . . . . . . Machines Repaired . | . . . . . . . . . . . Machines Dismantled . | . . . . . . . . . . . Machines Sabotaged . | . . . . . . . . . . . Overloaded Fab Kills . | . . . . . . . . . . . Hacking | -11 -10 -10 -9 -9 -8 -7 -7 -7 -7 -6 --------- Run | Yrd Mat Min Mat Min Mat Fac Low Low Dat Pro Machines Accessed 26 | . 2 . 1 . 6 14 1 . 2 . Terminals 18 | . 2 . 1 . 6 9 . . . . Fabricators 4 | . . . . . . 4 . . . . Repair Stations . | . . . . . . . . . . . Recycling Units . | . . . . . . . . . . . Scanalyzers . | . . . . . . . . . . . Garrison Access 1 | . . . . . . 1 . . . . Total Hacks 81 | . 4 . 2 . 14 40 1 . 20 . Successful 50 | . 2 . 1 . 7 19 1 . 20 . Failed 31 | . 2 . 1 . 7 21 . . . . Catastrophic 2 | . . . . . . 2 . . . . Database Lockouts . | . . . . . . . . . . . Manual 17 | . . . . . . 17 . . . . Terminals 48 | . 4 . 2 . 14 28 . . . . Fabricators 11 | . . . . . . 11 . . . . Repair Stations . | . . . . . . . . . . . Recycling Units . | . . . . . . . . . . . Scanalyzers . | . . . . . . . . . . . Garrison Access 1 | . . . . . . 1 . . . . Terminal Hacks 39 | . 2 . 1 . 7 8 1 . 20 . Record 3 | . . . . . 2 1 . . . . Part Schematic 11 | . . . . . . . . . 11 . Robot Schematic 6 | . . . . . . . . . 6 . Prototype ID Bank 4 | . . . . . 1 . . . 3 . Open Door 1 | . . . . . . . 1 . . . Branch Access Points 1 | . . . 1 . . . . . . . Repair Station Index 1 | . . . . . 1 . . . . . Alert Level 2 | . . . . . 1 1 . . . . Locate Traps 3 | . 1 . . . . 2 . . . . Disarm Traps 2 | . . . . . . 2 . . . . Dispatch Records 1 | . . . . . . 1 . . . . Transport Status 1 | . . . . . 1 . . . . . Recall Investigation 1 | . 1 . . . . . . . . . Recall Reinforcements 1 | . . . . . . 1 . . . . Zone Layout 1 | . . . . . 1 . . . . . Fabricator Hacks 4 | . . . . . . 4 . . . . Network Status 1 | . . . . . . 1 . . . . Build 3 | . . . . . . 3 . . . . Repair Station Hacks . | . . . . . . . . . . . Recycling Unit Hacks . | . . . . . . . . . . . Scanalyzer . | . . . . . . . . . . . Garrison Access Hacks . | . . . . . . . . . . . Unauthorized Hacks 7 | . . . . . . 7 . . . . Terminals 7 | . . . . . . 7 . . . . Assimilate 2 | . . . . . . 2 . . . . Botnet 4 | . . . . . . 4 . . . . Operators 1 | . . . . . . 1 . . . . Fabricators . | . . . . . . . . . . . Repair Stations . | . . . . . . . . . . . Recycling Units . | . . . . . . . . . . . Scanalyzers . | . . . . . . . . . . . Garrison Access . | . . . . . . . . . . . Data Cores Recovered 3 | . . . . . 2 1 . . . . Used . | . . . . . . . . . . . Hacking Detections 18 | . 2 . . . 4 12 . . . . Full Trace Events 1 | . . . . . . 1 . . . . Feedback Events . | . . . . . . . . . . . Feedback Blocked . | . . . . . . . . . . . Robot Schematics Acquired 6 | . . . . . . . . . 6 . Robots Built 9 | . . . . . . 9 . . . . Authchips . | . . . . . . . . . . . Time 273 | . . . . . . 273 . . . . Total Robot Build Rating 27 | . . . . . . 27 . . . . Part Schematics Acquired 11 | . . . . . . . . . 11 . Parts Built . | . . . . . . . . . . . Authchips . | . . . . . . . . . . . Time . | . . . . . . . . . . . Total Part Build Rating . | . . . . . . . . . . . Part Studies Acquired . | . . . . . . . . . . . Parts Repaired . | . . . . . . . . . . . Time . | . . . . . . . . . . . Parts Recycled . | . . . . . . . . . . . Recycled Matter . | . . . . . . . . . . . Retrieved Matter . | . . . . . . . . . . . Retrieved Components . | . . . . . . . . . . . Parts Scanalyzed . | . . . . . . . . . . . Part Schematics Acquired . | . . . . . . . . . . . Parts Damaged . | . . . . . . . . . . . Bothacking | -11 -10 -10 -9 -9 -8 -7 -7 -7 -7 -6 ------------ Run | Yrd Mat Min Mat Min Mat Fac Low Low Dat Pro Used RIF Installer . | . . . . . . . . . . . Robots Hacked . | . . . . . . . . . . . Non-combat . | . . . . . . . . . . . Combat . | . . . . . . . . . . . Robot Hacks Applied . | . . . . . . . . . . . Relay Couplers Released . | . . . . . . . . . . . Fabnet Peak Effective % . | . . . . . . . . . . . Robots Rewired . | . . . . . . . . . . . Allies Hacked 2 | . . . . . . 2 . . . . Hacks Repelled . | . . . . . . . . . . . Allies | -11 -10 -10 -9 -9 -8 -7 -7 -7 -7 -6 -------- Run | Yrd Mat Min Mat Min Mat Fac Low Low Dat Pro Total Allies 13 | . . . . 3 . 9 . . . 1 Largest Group 4 | . . . . 3 3 4 . . . 1 Highest-Rated Group 96 | . . . . 40 40 48 . . . 96 Highest-Rated Ally 96 | . . . . 16 16 16 . . . 96 Total Orders . | . . . . . . . . . . . Ally Attacks 95 | . . . . . 19 73 . . . 3 Total Damage 1151 | . . . . . 241 816 . . . 94 Kills 10 | . . . . . 2 8 . . . . Allies Corrupted . | . . . . . . . . . . . Allies Melted 1 | . . . . . . . . . . 1 Intel | -11 -10 -10 -9 -9 -8 -7 -7 -7 -7 -6 ------- Run | Yrd Mat Min Mat Min Mat Fac Low Low Dat Pro Active Infowar (turns) 1777 | . 161 . . . . 1616 . . . . Optics 161 | . 161 . . . . . . . . . Terrain 318 | . . . . . . 318 . . . . Machine Analysis 1298 | . . . . . . 1298 . . . . Robot Analysis Total . | . . . . . . . . . . . Derelict Logs Recovered 5 | . . 1 . 1 . . 1 2 . . Drone Launches . | . . . . . . . . . . . Drone Recoveries . | . . . . . . . . . . . Exploration | -11 -10 -10 -9 -9 -8 -7 -7 -7 -7 -6 ------------- Run | Yrd Mat Min Mat Min Mat Fac Low Low Dat Pro Turns Passed 10094 | 45 464 674 1031 474 2679 3709 270 518 81 149 Spaces Moved 6116 | 40 423 416 542 346 1346 2192 217 426 78 90 Core 1 | 1 . . . . . . . . . . Treads 97 | . . . 90 . . 7 . . . . Legs . | . . . . . . . . . . . Wheels 6018 | 39 423 416 452 346 1346 2185 217 426 78 90 Hover . | . . . . . . . . . . . Flight . | . . . . . . . . . . . Fastest Speed 50 | 50 80 110 115 115 110 105 105 105 105 105 Average Speed 134 | 79 86 154 153 115 166 131 105 105 105 107 Slowest Speed 560 | 80 110 155 240 115 250 560 105 105 105 170 Overloaded Moves . | . . . . . . . . . . . Propulsion Burnouts . | . . . . . . . . . . . Robots Hopped . | . . . . . . . . . . . Potential Cave-ins 3 | . . . . . 3 . . . . . Cave-ins Triggered . | . . . . . . . . . . . Exploration Rate (%) 51 | 3 52 89 36 73 84 42 40 62 68 14 Regions Visited 10 Branch Regions 6 Pre-discovered Areas 2 | . . 1 . 1 . . . . . . Known Exits Taken 5 | . . . 1 . . 1 1 1 1 . Unknown Exits Taken 5 | 1 1 1 . 1 1 . . . . . Scrap Searched 13 | . . 2 . 4 . . 2 5 . . Spaces Dug 77 | . . . . . 18 59 . . . . Terrain Destroyed 386 | . 9 . 60 40 135 61 . 53 . 28 Melee 77 | . . . . . 18 59 . . . . Projectile 9 | . . . . . 7 2 . . . . AOE 300 | . 9 . 60 40 110 . . 53 . 28 Terrain Rammed . | . . . . . . . . . . . Walls Destroyed . | . . . . . . . . . . . Machines Disabled . | . . . . . . . . . . . Actions | -11 -10 -10 -9 -9 -8 -7 -7 -7 -7 -6 --------- Run | Yrd Mat Min Mat Min Mat Fac Low Low Dat Pro Total 7188 | 50 492 437 673 402 1587 2655 235 469 77 111 Wait 315 | . 25 4 27 41 40 164 3 9 . 2 Move 6106 | 39 422 415 541 345 1345 2191 216 425 77 90 Hop . | . . . . . . . . . . . Pick Up 101 | 5 11 9 15 1 37 19 1 3 . . Fast Attach 39 | 5 2 . 5 . 9 14 3 1 . . Attach 53 | 1 1 3 7 1 16 13 . 6 . 5 Detach 15 | . 1 . 4 1 3 3 1 2 . . Swap 56 | . 4 . 10 1 14 21 . 5 . 1 Drop 92 | . 10 . 19 . 21 37 1 4 . . Fire 234 | . 16 5 43 12 61 62 8 14 . 13 Melee 174 | . . . . . 41 131 2 . . . Ram 1 | . . 1 . . . . . . . . Kick . | . . . . . . . . . . . Crush 2 | . . . 2 . . . . . . . Escape Stasis . | . . . . . . . . . . . Rewire . | . . . . . . . . . . . Trap . | . . . . . . . . . . . Miscellaneous . | . . . . . . . . . . . Route ------- -11/Scrapyard -10/Materials (discovered 2 exits: *Mat / [*Min]) -10/Mines -9/Materials (discovered 4 exits: *Mat / *Min x2 / *Sto) -9/Mines -8/Materials (discovered 2 exits: *Fac x2) -7/Factory (discovered 3 exits: *Fac x2 / *Low) -7/Lower Caves -7/Lower Caves (discovered 2 exits: *Fac / *Dat) -7/Data Miner -6/Proximity Caves History --------- Turn | Location | Event 10 | -11/Scrapyard | Discovered new exit (range 16) 46 | -11/Scrapyard | Entered Materials 283 | -10/Materials | Discovered new exit (range 9) 306 | -10/Materials | Build established: Mutant 371 | -10/Materials | Discovered new exit (range 14) 510 | -10/Materials | Entered Mines 549 | -10/Mines | Lost 3 parts (1n2w) 635 | -10/Mines | Found a hidden stash of uninstalled traps 870 | -10/Mines | Learned location of Storage (-9) 898 | -10/Mines | Received a Rocket Launcher from a helpful Derelict 1164 | -10/Mines | Learned Materials interactive machine intel 1170 | -10/Mines | Discovered new exit (range 9) 1184 | -10/Mines | Entered Materials 1184 | -9/Materials | Evolved 2 slots: Utility x1, Weapon x1 1185 | -9/Materials | Loaded intel: 18 interactive machine locations 1471 | -9/Materials | Discovered new exit (range 8) 1631 | -9/Materials | Lost 3 parts (1p2w) 2065 | -9/Materials | Discovered new exit (range 8) 2068 | -9/Materials | Identified exit to Mines 2068 | -9/Materials | Identified exit to Storage 2215 | -9/Materials | Entered Mines 2228 | -9/Mines | Build established: Gunner 2273 | -9/Mines | Assembled infested the area 2535 | -9/Mines | Discovered new exit (range 10) 2560 | -9/Mines | Assisted by bots powering up and referring to "LRC-V3" 2689 | -9/Mines | Entered Materials 2689 | -8/Materials | Accompanied by 3 allies 2689 | -8/Materials | Evolved 2 slots: Utility x1, Weapon x1 3128 | -8/Materials | Discovered new exit (range 14) 3553 | -8/Materials | Build established: Hauler-Gunner 3956 | -8/Materials | Discovered new exit (range 14) 4300 | -8/Materials | Garrison activated, responded to threat 4364 | -8/Materials | Destroyed 7 combat bots 4371 | -8/Materials | Lost 6 parts (1n1u4w) 4432 | -8/Materials | Lost 4 parts (1n3w) 4677 | -8/Materials | Build established: Hauler-Mutant 5020 | -8/Materials | Core integrity fell below 50% 5330 | -8/Materials | Build established: Hauler-Gunner 5368 | -8/Materials | Entered Factory 5368 | -7/Factory | Evolved 2 slots: Propulsion x1, Utility x1 5888 | -7/Factory | Discovered new exit (range 6) 6111 | -7/Factory | Build established: Scavenger-Gunner 6519 | -7/Factory | Build established: Gunner 6976 | -7/Factory | System corruption reached 10% 7013 | -7/Factory | Build established: Hacker-Gunner 7315 | -7/Factory | Build established: Hacker-Tank 7824 | -7/Factory | Discovered new exit (range 9) 7945 | -7/Factory | Fabricated G-47 Trooper (x3) 8131 | -7/Factory | Build established: Hacker-Gunner 8378 | -7/Factory | Fabricated T-07 Excavator? 8473 | -7/Factory | Core integrity fell below 50% 8478 | -7/Factory | Lost 3 allies 8545 | -7/Factory | Fabricated S-27 Virus? 8739 | -7/Factory | Discovered new exit (range 16) 8744 | -7/Factory | Build established: Scavenger-Tank 8775 | -7/Factory | Lost 3 allies 8837 | -7/Factory | P-60 Hacker assimilated allied Virus 4b 8863 | -7/Factory | Identified exit to Factory 9075 | -7/Factory | Identified exit to Lower Caves 9077 | -7/Factory | Entered Lower Caves 9302 | -7/Lower Caves | Discovered new exit (range 10) 9310 | -7/Lower Caves | Identified exit to Lower Caves 9315 | -7/Lower Caves | Learned 4 Factory zone layouts 9347 | -7/Lower Caves | Entered another Lower Caves area 9359 | -7/Lower Caves | Discovered exit to Factory (range 15) 9482 | -7/Lower Caves | Learned location of 1 exit from Factory 9599 | -7/Lower Caves | Encountered a Warlord checkpoint 9634 | -7/Lower Caves | Build established: Tank 9819 | -7/Lower Caves | Attracted the attention of an 0b10 checkpoint 9845 | -7/Lower Caves | Discovered new exit (range 8) 9858 | -7/Lower Caves | Identified exit to Data Miner 9865 | -7/Lower Caves | Entered Data Miner 9865 | -7/Data Miner | Discovered new exit (range 6) 9875 | -7/Data Miner | Identified exit to Proximity Caves 9890 | -7/Data Miner | Met Data Miner 9922 | -7/Data Miner | Received God Mode back door access code from Data Miner 9946 | -7/Data Miner | Entered Proximity Caves 10055 | -6/Proximity Caves | Attracted the attention of an 0b10 outpost 10055 | -6/Proximity Caves | Core integrity fell below 20% 10095 | -6/Proximity Caves | Destroyed by Y-64 Sentinel with Wave Gun Last Messages --------------- 10077_ System corrupted by crushing effect (+1). 10077_ System corrupted by crushing effect (+3). 10077_ Knocked back. 10077_ Mic. Nuclear Core destroyed. 10077_ Critical hit (Burn: +37). 10080_ B-48 Gladiator overheating. 10082_ B-48 Gladiator heat damages core (-10). 10082_ Rnf. Deuterium Engine melted. 10082_ Mace melted. 10082_ Hvy. Laser destroyed. 10082_ Y-64 Sentinel IFF system glitched. 10082_ Slug penetrates Wall. 10085_ Destroyed Lgt. Angular Momentum Engine. 10085_ Critical hit (Burn: +37). 10088_ G-50 Soldier destroyed. 10091_ Adv. Treads destroyed. 10092_ Penetrated by Slug. 10092_ Critical hit (Destroy). 10092_ Missile Launcher destroyed. 10094_ The unstable cave ceiling collapses. Map ----- +----------------------------------------------------+ | ## % #???????????????????????????????????? | | ## ###???????????????????????????????????? | | #?????????????????? ?????????????????? | | ###?????????????????? ?????????????????? | | #??????????????????? ?????????????????? | | ## #??????????????????? ?????????????????? | | ?## ##?????????????????? ?????????????????? | | ?## ##????????????????? #????????????????? | | ?# #???? ??? ##?????? ????????????????? | | ## ##???? ?????? ????????????????? | | # #####???? ??? ????????????????? | | ######?## ##?? ??? #????????????????? | | ##?????## #?? #### #????????????????? | | #?????## ?? =% gb# ## ??????????????? | | #????## ?? # !# ???????????????? | | #????? ## ? ????????????????? | | #?????? ?## #????????????????? | | #??????? ??# ###??????????????? | | ##??????# #??# " ; #??????????????? | | ####???# ## #### # %%;#???????????????? | | ##??# ## ## %g g ;#???????????????? | | #### ## ##???????????????? | | # #???????????????? | | ### Y ###???????????????? | | ##?########## ##??????????????????? | | ##?????????## ### @ #####??????????????? | | #??????????# ##?# ##?????????????? | | #?????????# #####??# #?????????????? | | ##??????? #???????## #?????????????? | | #???????# ?????????## #?????????????? | | ????????######??????????# ##?????????????? | | ????????????????????????###########??????????????? | | ?????????????????????????????????????????????????? | | ?????????????????????????????????????????????????? | | ?????????????????????????????????????????????????? | | ?????????????????????????????????????????????????? | | ?????????????????????????????????????????????????? | | ?????????????????????????????????????????????????? | | ?????????????????????????????????????????????????? | | ?????????????????????????????????????????????????? | | ?????????????????????????????????????????????????? | | ?????????????????????????????????????????????????? | | ?????????????????????????????????????????????????? | | ?????????????????????????????????????????????????? | | ?????????????????????????????????????????????????? | | ?????????????????????????????????????????????????? | | ?????????????????????????????????????????????????? | | | | | | | +----------------------------------------------------+ Best States ------------- Heat Dissipation 80 Energy Generation 16 Energy Capacity 290 Matter Stores 300 Matter Capacity 300 Sight Range 18 Terrain Scan Range 14 Terrain Scan Density 10 Armor Coverage 300 Resistance: EM 15 Evasion (%) 44 Targeting Accuracy 8 Recoil Reduction 2 Kinecelleration 30 Offensive Hacking 10 Defensive Hacking 10 Item Schematics ----------------- Combat Drone Bay | -7/Data Miner | Free Lgt. Regenerative Plating | -7/Data Miner | Free Cld. Cesium-ion Thruster | -7/Data Miner | Free Thermal Defense Suite | -7/Data Miner | Free Imp. Heavy Laser | -7/Data Miner | Free Nuclear Pulse Array | -7/Data Miner | Free Adv. Salvage Targeting Computer | -7/Data Miner | Free Enh. Gauss Cannon | -7/Data Miner | Free Imp. Remote Datajack | -7/Data Miner | Free Lrn. Proton Cannon | -7/Data Miner | Free Hardcell Cannon | -7/Data Miner | Free Robot Schematics ------------------ G-47 Trooper | -7/Data Miner | Free B-48 Gladiator | -7/Data Miner | Free M-22 Extractor | -7/Data Miner | Free M-28 Smith | -7/Data Miner | Free S-27 Virus | -7/Data Miner | Free A-15 Conveyor | -7/Data Miner | Free Fabricated ------------ G-47 Trooper | x3 | -7/Factory | Preloaded T-07 Excavator | x2 | -7/Factory | Preloaded S-27 Virus | x4 | -7/Factory | Preloaded Repaired ---------- Nothing Studied --------- None Alien Tech Used ----------------- None Achievements -------------- GoHome() My Command Is Your Wish Part-time Excavator Quantum Hacking Tank True Hacker root@ Challenges ------------ None Game ------ Seed MicroMomentumProcessor Manual? 0 Play Time 02:10:23 Cumulative 15.0 hours Start 2026.02.04 @ 17:21:44 End 2026.02.05 @ 04:19:00 Sessions 1 Manual Loads 0 Difficulty Rogue Special Mode None Game No. 15 Rogue 15 Adventurer 0 Explorer 0 Win Type - Total 0 Types 0/0/0/0/0/0/0/0/0/0 Lore% 13 Gallery% 27 Achievement% 22 Wizard Run 0 Options --------- Layout 2 ASCII 0 Keyboard 0 Movement Numpad Keybinds 0 Fullscreen 1 Font 24/Terminus Map View 50x44 Zoom Use 0% Tactical HUD 1 Map Filters NONE Filters NONE Steam 0 RUN: 0bcf8f03-6fe3-4756-8533-a769d4e64296